Cogmind - Beta 14 @@@ ROGUE MODE // 2025.04.06 @ 19:59:34 Player: JackieG Result: Self-destructed Performance ------------- Evolutions (1) 500 Regions Visited (2) 400 Robots Destroyed (17) 85 Value Destroyed (446) 446 Prototype IDs (1) 20 Alien Tech Used (0) 0 Bonus (0) 0 TOTAL SCORE: 1451 Bonus ------- None Cogmind --------- Core Integrity 122/400 Matter 300/300 Energy 100/100 System Corruption 0% Temperature Cool (0) Movement Core (150) Ox2 Location -9/Materials Parts ------- > --- POWER (1) -------- (None) > --- PROPULSION (2) --- (None) > --- UTILITY (3) ------ Improved Heat Sink Small Storage Unit Improved Targeting Computer > --- WEAPON (3) ------- Light Assault Rifle > --- INVENTORY (8) ---- Ion Engine Light Treads Light Treads Light Treads Improved Flight Unit Small Laser Mining Laser Peak State ------------ > --- POWER ------------ Light Nuclear Core > --- PROPULSION ------- Light Treads Improved Treads > --- UTILITY ---------- Improved Heat Sink Small Storage Unit Improved Targeting Computer > --- WEAPON ----------- Medium Laser Assault Rifle Light Assault Rifle > --- INVENTORY -------- Ion Engine Light Treads Mining Laser [Rating: 15] Favorites ----------- Power Light Nuclear Core Engine Ion Engine Power Core Light Nuclear Core Propulsion Light Treads Treads Light Treads Utility Small Storage Unit Device Improved Heat Sink Storage Small Storage Unit Processor Improved Targeting Computer Weapon Medium Laser Energy Gun Medium Laser Ballistic Gun Assault Rifle Special Weapon Mining Laser Build | -11 -10 -9 ------- Run | Yrd Mat Mat Slots Evolved 2 | . . 2 Power . | . . . Propulsion . | . . . Utility 1 | . . 1 Weapon 1 | . . 1 Parts Attached 15 | 6 . 9 Power 3 | 1 . 2 Engine 2 | 1 . 1 Core 1 | . . 1 Reactor . | . . . Propulsion 4 | 2 . 2 Treads 4 | 2 . 2 Leg . | . . . Wheel . | . . . Hover . | . . . Flight . | . . . Utility 3 | 1 . 2 Device 1 | . . 1 Storage 1 | 1 . . Processor 1 | . . 1 Hackware . | . . . Protection . | . . . Artifact . | . . . Weapon 5 | 2 . 3 Energy Gun 1 | 1 . . Energy Cannon . | . . . Ballistic Gun 3 | 1 . 2 Ballistic Cannon . | . . . Launcher . | . . . Special Weapon 1 | . . 1 Impact Weapon . | . . . Slashing Weapon . | . . . Piercing Weapon . | . . . Special Melee Weapon . | . . . Unidentified Prototypes . | . . . Parts Lost 6 | . 1 5 Power 2 | . 1 1 Propulsion 2 | . . 2 Utility . | . . . Weapon 2 | . . 2 Highest Loss Streak 4 | . 1 4 To Critical Strikes . | . . . Average Slot Usage (%) 82 | . 73 86 Engine 2 | . 2 2 Core 3 | . . 4 Treads 23 | . 28 21 Device 4 | . . 5 Storage 11 | . 14 11 Processor 7 | . . 10 Energy Gun 11 | . 14 9 Ballistic Gun 16 | . 14 17 Special Weapon 2 | . . 2 Peak Build Rating 15 | 6 6 15 Average Rating 9 | 4 5 11 On Entrance 3 | . 6 5 Naked Turns . | . . . Heaviest Build 16 | 14 14 16 Greatest Support 43 | 40 40 43 Greatest Overweight (x) 2 | . . 2 Average Overweight (x) . | . . . Largest Inventory Capacity 8 | 8 8 8 Average Capacity 7 | 6 8 8 Most Carried 7 | 1 2 7 Average Carried 2 | . 1 3 Final Capacity 8 | 8 8 8 Final Carried 7 | 1 2 7 Class Distribution -------------------- 58% | Gunner 41% | Mutant Dominant Class ---------------- Mutant | -10/Materials Gunner | -9/Materials Resources | -11 -10 -9 ----------- Run | Yrd Mat Mat Matter Collected 503 | 177 101 225 Remotely . | . . . Salvage Created 581 | . 50 531 Parts 41 | . 8 33 Haulers Intercepted 1 | . . 1 Recyclers Shooed . | . . . Parts Field Recycled . | . . . Retrieved Matter . | . . . Parts Self-Destructed . | . . . Prevented . | . . . Kills | -11 -10 -9 ------- Run | Yrd Mat Mat Combat Hostiles Destroyed 16 | . 3 13 Guns 16 | . 3 13 Classes Destroyed 5 | . 1 4 Hauler 1 | . . 1 Swarmer 7 | . 3 4 Grunt 6 | . . 6 Duelist 1 | . . 1 Sentry 2 | . . 2 Best Kill Streak 4 | . 2 4 Combat Bots Only 4 | . 2 4 Max Kills in Single Turn 1 | . 1 1 Gunslinging . | . . . Exploded . | . . . Melee . | . . . Uniques/NPCs Destroyed . | . . . Combat | -11 -10 -9 -------- Run | Yrd Mat Mat Hostile Shots Fired 107 | . 7 100 Missed 20 | . 1 19 Damage Taken 1175 | . 127 1048 Core 284 | . 6 278 Absorbed by Shields . | . . . Core Remaining (%) 98 | 100 97 . Volleys Fired 55 | . 3 52 Largest 3 | . 2 3 Hottest 100 | . 70 100 Shots Fired 120 | . 6 114 Gun 115 | . 6 109 Cannon . | . . . Launcher . | . . . Special 5 | . . 5 Kinetic 77 | . 3 74 Thermal 43 | . 3 40 Explosive . | . . . Electromagnetic . | . . . Robot Hit Streak 16 | . 2 16 Robot Miss Streak 5 | . 1 5 Penetration Max . | . . . Secondary Targets 2 | . . 2 Max Gunslinging Chain 1 | . . 1 Shots Hit Robots 76 | . 3 73 Core Hits 29 | . 3 26 Critical Kills 1 | . . 1 Critical Parts Destroyed . | . . . Critical Strikes 4 | . . 4 Burn 3 | . . 3 Destroy 1 | . . 1 Melee Attacks . | . . . Impact . | . . . Slashing . | . . . Piercing . | . . . Sneak Attacks . | . . . Combat Hostiles . | . . . Follow-up Attacks . | . . . Damage Inflicted 862 | . 37 825 Guns 862 | . 37 825 Cannons . | . . . Explosions . | . . . Melee . | . . . Ramming . | . . . Kinetic 505 | . 25 480 Thermal 357 | . 12 345 Explosive . | . . . Electromagnetic . | . . . Impact . | . . . Slashing . | . . . Piercing . | . . . Highest Corruption 1 | . 1 . Average Corruption 1 | . 1 . Corruption Purged . | . . . Corruption Blocked . | . . . Effects 5 | . 5 . Matter Fused 1 | . 1 . Heat Flow Errors 2 | . 2 . Energy Discharges 2 | . 2 . Overload Shots . | . . . Overflow Damage . | . . . Projectiles . | . . . Explosions . | . . . Melee . | . . . Knockbacks . | . . . Impact . | . . . Kinetic . | . . . Secondary . | . . . Self-Inflicted Damage . | . . . Shots . | . . . Rammed . | . . . Targets Rammed . | . . . Kicked . | . . . Crushed . | . . . Highest Temperature 279 | . 185 279 Average Temperature 87 | . 95 85 Received Heat Transfer 432 | . . 432 Siege Activations . | . . . Robots Corrupted . | . . . Combat Hostiles . | . . . Parts Fried . | . . . Impact Corruptions . | . . . Robots Melted . | . . . Combat Hostiles . | . . . Parts Melted 4 | . . 4 Heat Transferred 1295 | . 37 1258 Parts Sabotaged . | . . . Parts Stolen . | . . . Parts Stripped . | . . . Power Chain Reactions . | . . . Alert | -11 -10 -9 ------- Run | Yrd Mat Mat Peak Influence 340 | . 85 340 Initial 35 | . . 35 Average 102 | . 14 151 Maximum Alert Level 1 | . . 1 Low Security (%) 85 | 100 100 77 Level 1 14 | . . 22 Level 2 . | . . . Level 3 . | . . . Level 4 . | . . . Level 5 . | . . . High Security . | . . . Max Security . | . . . Squads Dispatched . | . . . Investigation . | . . . Extermination . | . . . Reinforcement . | . . . Assault . | . . . Garrison . | . . . Intercept . | . . . Searches Triggered . | . . . Construction Impeded . | . . . Haulers Reinforced . | . . . Active Scanning Responses . | . . . Cargo Convoy Interrupts . | . . . Stealth | -11 -10 -9 --------- Run | Yrd Mat Mat Distress Signals 1 | . . 1 Communications Jammed . | . . . Distress Signals . | . . . Times Spotted 20 | . 4 16 Peak Tracking Total 4 | . 3 4 Tactical Retreats 1 | . 1 . Traps | -11 -10 -9 ------- Run | Yrd Mat Mat Traps Triggered 1 | . 1 . Indirectly . | . . . Trap Hack Attempts . | . . . Triggered . | . . . Disarmed . | . . . Reprogrammed . | . . . Reused . | . . . Traps Extracted . | . . . Installed . | . . . Triggered . | . . . Machines | -11 -10 -9 ---------- Run | Yrd Mat Mat Machines Disabled 2 | . . 2 Max in Single Turn 1 | . . 1 Machines Repaired . | . . . Machines Dismantled . | . . . Machines Sabotaged . | . . . Overloaded Fab Kills . | . . . Hacking | -11 -10 -9 --------- Run | Yrd Mat Mat Machines Accessed 2 | . . 2 Terminals 1 | . . 1 Fabricators . | . . . Repair Stations . | . . . Recycling Units . | . . . Scanalyzers 1 | . . 1 Garrison Access . | . . . Total Hacks 5 | . . 5 Successful 5 | . . 5 Failed . | . . . Catastrophic . | . . . Database Lockouts . | . . . Manual . | . . . Terminals 3 | . . 3 Fabricators . | . . . Repair Stations . | . . . Recycling Units . | . . . Scanalyzers 2 | . . 2 Garrison Access . | . . . Terminal Hacks 3 | . . 3 Record 2 | . . 2 Zone Layout 1 | . . 1 Fabricator Hacks . | . . . Repair Station Hacks . | . . . Recycling Unit Hacks . | . . . Scanalyzer 2 | . . 2 Insert Component 1 | . . 1 Analyze 1 | . . 1 Garrison Access Hacks . | . . . Unauthorized Hacks . | . . . Terminals . | . . . Fabricators . | . . . Repair Stations . | . . . Recycling Units . | . . . Scanalyzers . | . . . Garrison Access . | . . . Data Cores Recovered . | . . . Used . | . . . Hacking Detections 2 | . . 2 Full Trace Events 1 | . . 1 Feedback Events . | . . . Feedback Blocked . | . . . Robot Schematics Acquired . | . . . Robots Built . | . . . Authchips . | . . . Time . | . . . Total Robot Build Rating . | . . . Part Schematics Acquired 1 | . . 1 Parts Built . | . . . Authchips . | . . . Time . | . . . Total Part Build Rating . | . . . Parts Repaired . | . . . Time . | . . . Parts Recycled . | . . . Recycled Matter . | . . . Retrieved Matter . | . . . Retrieved Components . | . . . Parts Scanalyzed 1 | . . 1 Part Schematics Acquired 1 | . . 1 Parts Damaged . | . . . Bothacking | -11 -10 -9 ------------ Run | Yrd Mat Mat Used RIF Installer . | . . . Robots Hacked . | . . . Non-combat . | . . . Combat . | . . . Robot Hacks Applied . | . . . Relay Couplers Released . | . . . Fabnet Peak Effective % . | . . . Robots Rewired . | . . . Allies Hacked . | . . . Hacks Repelled . | . . . Allies | -11 -10 -9 -------- Run | Yrd Mat Mat Total Allies . | . . . Largest Group . | . . . Highest-Rated Group . | . . . Highest-Rated Ally . | . . . Total Orders . | . . . Ally Attacks . | . . . Total Damage . | . . . Kills . | . . . Allies Corrupted . | . . . Allies Melted . | . . . Intel | -11 -10 -9 ------- Run | Yrd Mat Mat Robot Analysis Total . | . . . Derelict Logs Recovered . | . . . Drone Launches . | . . . Drone Recoveries . | . . . Exploration | -11 -10 -9 ------------- Run | Yrd Mat Mat Turns Passed 921 | 87 235 599 Spaces Moved 426 | 52 141 233 Core 6 | 5 . 1 Treads 420 | 47 141 232 Legs . | . . . Wheels . | . . . Hover . | . . . Flight . | . . . Fastest Speed 50 | 50 160 150 Average Speed 158 | 149 160 159 Slowest Speed 160 | 160 160 160 Overloaded Moves . | . . . Propulsion Burnouts . | . . . Robots Hopped . | . . . Cave-ins Triggered . | . . . Exploration Rate (%) 20 | 6 29 26 Regions Visited 2 Branch Regions . Pre-discovered Areas . | . . . Known Exits Taken . | . . . Unknown Exits Taken 2 | 1 1 . Scrap Searched . | . . . Spaces Dug 5 | . . 5 Terrain Destroyed 5 | . . 5 Melee . | . . . Projectile 5 | . . 5 AOE . | . . . Terrain Rammed . | . . . Walls Destroyed . | . . . Machines Disabled . | . . . Actions | -11 -10 -9 --------- Run | Yrd Mat Mat Total 561 | 58 145 358 Wait 61 | . 1 60 Move 424 | 51 140 233 Hop . | . . . Pick Up 6 | 1 1 4 Fast Attach 9 | 6 . 3 Attach 1 | . . 1 Detach . | . . . Swap 5 | . . 5 Drop . | . . . Fire 55 | . 3 52 Melee . | . . . Ram . | . . . Kick . | . . . Crush . | . . . Escape Stasis . | . . . Rewire . | . . . Trap . | . . . Miscellaneous . | . . . Route ------- -11/Scrapyard -10/Materials (discovered 2 exits: *Mat / [*Min]) -9/Materials History --------- Turn | Location | Event 9 | -11/Scrapyard | Discovered new exit (range 15) 88 | -11/Scrapyard | Entered Materials 109 | -10/Materials | Discovered new exit (range 14) 216 | -10/Materials | Discovered new exit (range 7) 317 | -10/Materials | Build established: Mutant 323 | -10/Materials | Entered another Materials area 323 | -9/Materials | Evolved 2 slots: Utility x1, Weapon x1 642 | -9/Materials | Build established: Gunner 875 | -9/Materials | Core integrity fell below 50% 914 | -9/Materials | Lost 4 parts (1p1n2w) 922 | -9/Materials | Self-destructed Last Messages --------------- Heat Sink melted. Y-45 Defender destroyed. Switching to secondary target: Y-45 Defender. Assault Rifle destroyed. Med. Laser destroyed. Acquired 6 matter. Acquired 1 matter. R-06 Scavenger collects Heat Sink. Acquired 1 matter. Lgt. Nuclear Core destroyed. Acquired 1 matter. R-06 Scavenger collects Lgt. Armor Plating. Acquired 1 matter. Imp. Treads destroyed. Y-45 Defender destroyed. Acquired 1 matter. R-06 Scavenger collects Imp. Ion Engine. Acquired Lgt. Treads. R-06 Scavenger collects Hvy. Assault Rifle. Lgt. Treads destroyed. Map ----- +----------------------------------------------------+ | | | | | ????????????????????????????????????????? | | ????????????????????????????????????????? | | ????????????????????????????????????????? | | ????????????????????????????????????????? | | ????????????????????????????????????????? | | ????????????????????????????????????????? | | ????????????????????????????????????????? | | ????????????????????????????????????????? | | ????????????????????????????????????????? | | ????????????????????????????????????????? | | ????????????????????????????????????????? | | ??????????????????????????????????#?????? | | ????????????????????????????????? ??????? | | ???????????????????????????????? ???????? | | ??????????????????????????????? #???????? | | ??????????????????????????????? #???????? | | ?????????????????????????????? #???????? | | ????????????????????????????? #???????? | | ????????????????????????????# ##??????? | | ??????????????????#######+## #??????? | | ?????????????????? ???????? | | ?????????????????? ?? ???????? | | ?????????????????? ???? u a ???????? | | ?????????????????# ?#####@## ???????? | | ?????????????????# ?# ## #???????? | | ?????????????????# ## ## #???????? | | ????????????????## ## """ ## #???????? | | ????????????????? ## """ ## #???????? | | ?????????????????# ## """Yg## ##??????? | | ?????????""?????## ## # #??????? | | ????????"""" ### ##+##### #??????? | | ????????""" / #???? #??????? | | ?????# ### ####????? ???????? | | ????????????????## ##???????? ????????? | | ?????????????????# #?????????# #????????? | | ?????############# ########### #????????? | | ?????# """" # %= ######???? | | ?????# ""S"" # * #? | | ?????#[ "" "" # =% #? | | ?????# + """ """ """ """ #? | | ?????# # """ """ """ """ #? | | ?????# # """ """ """ """ #? | | ?????# # #? | | ?????# ## #? | | ?????############ """ """ """ """ #? | | ?????????######## """ """ "" """ #? | | ????????? # """ """ """ """ #? | | ???????? """ # % #? | +----------------------------------------------------+ Best States ------------- Heat Dissipation 42 Energy Generation 14 Energy Capacity 250 Matter Stores 300 Matter Capacity 300 Sight Range 16 Terrain Scan Density 10 Evasion (%) 40 Targeting Accuracy 6 Recoil Reduction 2 Item Schematics ----------------- Imp. Flight Unit | -9/Materials | Scanalyzed Robot Schematics ------------------ None Fabricated ------------ Nothing Alien Tech Used ----------------- None Achievements -------------- None Challenges ------------ None Game ------ Seed DamperMomentumMicroactuators Manual? 0 Play Time 00:14:19 Cumulative 37.0 hours Start 2025.04.06 @ 19:46:37 End 2025.04.06 @ 19:59:34 Sessions 1 Manual Loads 0 Difficulty Rogue Special Mode None Game No. 38 Rogue 35 Adventurer 3 Explorer 0 Win Type - Total 0 Types 0/0/0/0/0/0/0/0/0 Lore% 20 Gallery% 33 Achievement% 30 Wizard Run 0 Options --------- Layout 1 ASCII 0 Keyboard 0 Movement Mouse Keybinds 0 Fullscreen 1 Font 24/Smallcaps Map View 50x35 Zoom Use 0% Tactical HUD 0 Map Filters NONE Filters NONE Steam 1 RUN: 40bb52bc-5484-45b8-b662-03906880333e